bitfinex-derivatives/quotes_BTCF0:USTF0_20240929
["timestamp","ask_amount","ask_price","bid_price","bid_amount"]
[1727596626936,0.3644,65497.0,65490.0,1.22796199]
[1727596627139,0.4208,65497.0,65496.0,0.12]
[1727596627341,0.4208,65497.0,65496.0,0.12777412]
[1727596627643,0.4208,65497.0,65496.0,0.29206788]
[1727596628253,0.4208,65497.0,65496.0,0.28429376]
[1727596629049,0.4208,65497.0,65496.0,0.28629376]
[1727596631951,0.4208,65497.0,65496.0,0.30842061]
[1727596632946,0.4208,65497.0,65496.0,0.31616547]
[1727596633550,0.06,65497.0,65496.0,0.31616547]
[1727596635545,0.06,65497.0,65496.0,0.30842061]
[1727596636145,0.06,65497.0,65496.0,0.31590504]
[1727596637466,0.06,65497.0,65496.0,0.31690504]
[1727596639466,0.06,65497.0,65496.0,0.67770504]
[1727596642852,0.06,65497.0,65496.0,1.06770504]
[1727596647852,0.00589111,65501.0,65500.0,0.076324]
[1727596648059,0.3608,65508.0,65505.0,0.076318]
[1727596648258,0.05,65507.0,65506.0,0.196317]
[1727596648459,0.05,65507.0,65506.0,1.12382809]
[1727596648766,0.05,65507.0,65506.0,1.12592075]
[1727596649569,0.057,65507.0,65506.0,1.12592075]
[1727596652562,0.057,65507.0,65506.0,1.12692075]
[1727596652563,0.066,65507.0,65506.0,1.12692075]
[1727596653162,0.066,65507.0,65506.0,0.76612075]
[1727596653570,0.059,65507.0,65506.0,0.76612075]
[1727596653870,0.067,65507.0,65506.0,0.76712075]
[1727596654464,0.063,65507.0,65506.0,0.76612075]
[1727596655264,0.063,65507.0,65506.0,0.78805296]
[1727596655466,0.059,65507.0,65506.0,0.32073596]
[1727596657063,0.059,65507.0,65506.0,0.39705296]
[1727596666769,0.059,65507.0,65506.0,0.45800826]
[1727596668472,0.059,65507.0,65506.0,0.39705296]
[1727596672073,0.059,65507.0,65506.0,0.27705296]
[1727596672273,0.059,65507.0,65506.0,0.39705296]
[1727596676683,0.059,65507.0,65506.0,0.39968296]
[1727596677588,0.059,65507.0,65506.0,0.56645208]
[1727596678191,0.059,65507.0,65506.0,0.56645219]
[1727596681691,0.059,65507.0,65506.0,0.56648109]
[1727596686203,0.059,65507.0,65506.0,0.95648109]
[1727596686703,0.059,65507.0,65506.0,0.88016409]
[1727596687308,0.059,65507.0,65506.0,0.49016409]
[1727596687609,0.059,65507.0,65506.0,0.37016409]
[1727596687805,0.059,65507.0,65506.0,0.20336596]
[1727596691603,0.059,65507.0,65506.0,0.26442967]
[1727596691808,0.0914,65507.0,65506.0,0.26442967]
[1727596692312,0.0914,65507.0,65506.0,0.20336596]
[1727596699922,0.167716,65507.0,65506.0,0.20336596]
[1727596703720,0.135316,65507.0,65506.0,0.20336596]
[1727596705317,0.135316,65507.0,65506.0,0.20073596]
[1727596716311,0.735316,65507.0,65506.0,0.20073596]
[1727596716512,0.076322,65502.0,65501.0,0.06106371]
[1727596716816,0.076322,65502.0,65500.0,0.06106371]
[1727596716817,0.076323,65501.0,65500.0,0.06106371]
[1727596717019,0.076324,65500.0,65499.0,0.44406674]
[1727596717227,0.306324,65500.0,65499.0,0.02220303]
[1727596717518,0.076329,65496.0,65495.0,0.06106371]
[1727596717724,0.176329,65496.0,65494.0,0.06106371]
[1727596717924,0.07633,65495.0,65494.0,0.06106371]
[1727596718123,0.16633,65495.0,65494.0,0.06106371]
[1727596718325,0.16633,65495.0,65493.0,0.06106371]
[1727596718918,0.076331,65494.0,65493.0,0.06106371]
[1727596719219,0.136331,65494.0,65493.0,0.06106371]
[1727596719426,0.136331,65494.0,65492.0,0.06106371]
[1727596719613,0.136331,65494.0,65493.0,0.003]
[1727596722329,0.136331,65494.0,65493.0,0.123]
[1727596722830,0.137331,65494.0,65493.0,0.123]
[1727596723218,0.137331,65494.0,65493.0,0.128]
[1727596724120,0.137331,65494.0,65493.0,0.518]
[1727596724320,0.137331,65494.0,65493.0,0.68912115]
[1727596724321,0.061,65494.0,65493.0,0.68912115]
[1727596729526,0.061,65494.0,65493.0,1.04992115]
[1727596731426,0.2,65508.0,65494.0,0.45804]
[1727596731427,0.0301,65508.0,65494.0,0.45804]
[1727596731631,0.07628,65538.0,65494.0,0.45804]
[1727596731632,0.3608,65532.0,65516.0,0.076305]
[1727596731836,0.12,65530.0,65525.0,0.04570687]
[1727596732033,0.12,65526.0,65524.0,0.04570687]
[1727596732223,0.12,65526.0,65518.0,0.3608]
[1727596732224,0.23,65526.0,65522.0,0.04570687]
[1727596732430,0.23,65526.0,65521.0,0.04570687]
[1727596732728,0.23,65526.0,65522.0,0.59169763]
[1727596733127,0.23,65526.0,65522.0,0.41570687]
[1727596733332,0.23,65526.0,65520.0,0.04570687]
[1727596733738,0.23,65526.0,65522.0,0.16769907]
[1727596733950,0.23,65526.0,65521.0,0.16769907]
[1727596734241,0.23,65526.0,65519.0,0.04570687]
[1727596734427,0.23,65526.0,65521.0,0.17521146]
[1727596734631,0.23,65526.0,65519.0,0.54521146]
[1727596734831,0.23,65526.0,65520.0,0.17521146]
[1727596735041,0.23,65526.0,65518.0,0.52754687]
[1727596735237,0.235,65526.0,65520.0,0.17147306]
[1727596735431,0.3608,65525.0,65520.0,0.17147306]
[1727596735637,0.4708,65525.0,65520.0,0.001]
[1727596735933,0.4708,65525.0,65521.0,0.17208127]
[1727596736341,0.12,65523.0,65521.0,0.17208127]
[1727596736538,0.23,65523.0,65521.0,0.17208127]
[1727596738338,0.23,65523.0,65520.0,0.16532258]
[1727596738739,0.23,65523.0,65519.0,0.001]
[1727596738939,0.23,65523.0,65520.0,0.16914262]
[1727596739146,0.239,65523.0,65521.0,0.001]
[1727596739439,0.239,65523.0,65522.0,0.16914262]
[1727596739635,0.25,65523.0,65522.0,0.16914262]
[1727596741135,1.29684,65523.0,65522.0,0.06934262]
[1727596741341,0.45788,65522.0,65511.0,0.07859942]
[1727596741540,0.1,65522.0,65515.0,0.12]
[1727596741730,0.12,65520.0,65515.0,0.12]
[1727596741935,0.23,65520.0,65515.0,0.12]
[1727596742847,0.23,65520.0,65519.0,0.001]
[1727596743246,1.28788,65520.0,65519.0,0.001]
[1727596743747,1.29388,65520.0,65515.0,0.12]
[1727596743937,0.236,65520.0,65515.0,0.12]
[1727596744250,0.236,65520.0,65515.0,0.121]
[1727596744251,0.241,65520.0,65515.0,0.121]
[1727596744442,0.0306,65519.0,65515.0,0.001]
[1727596744635,0.1206,65519.0,65515.0,0.001]
[1727596744941,0.1206,65519.0,65512.0,0.12]
[1727596747347,0.1256,65519.0,65515.0,0.001]
[1727596748345,0.1286,65519.0,65515.0,0.001]
[1727596749243,0.1236,65519.0,65512.0,0.12]
[1727596749443,0.1256,65519.0,65512.0,0.12]
[1727596751255,0.204902,65519.0,65512.0,0.12]
[1727596751453,0.1286,65519.0,65512.0,0.12]
[1727596751849,0.1266,65519.0,65512.0,0.12]
[1727596752057,0.1316,65519.0,65515.0,0.001]
[1727596752254,0.076303,65518.0,65515.0,0.001]
[1727596752556,0.12,65516.0,65515.0,0.001]
[1727596752855,0.296305,65516.0,65515.0,0.001]
[1727596753259,0.296305,65516.0,65511.0,0.0244209]
[1727596753454,0.076307,65515.0,65511.0,0.0244209]
[1727596753646,0.176307,65515.0,65511.0,0.0244209]
[1727596757049,0.177307,65515.0,65511.0,0.0244209]
[1727596758359,0.297307,65515.0,65511.0,0.07012777]
[1727596759361,0.297307,65515.0,65512.0,0.04570687]
[1727596760461,0.299307,65515.0,65513.0,0.04570687]
[1727596760962,0.300307,65515.0,65513.0,0.04570687]
[1727596761458,0.300307,65515.0,65511.0,0.0244209]
[1727596761459,0.298307,65515.0,65514.0,0.04570687]
[1727596761759,0.301307,65515.0,65514.0,0.04570687]
[1727596762350,0.301307,65515.0,65512.0,0.06094022]
[1727596764163,0.302307,65515.0,65512.0,0.06094022]
[1727596764453,0.303307,65515.0,65512.0,0.06094022]
[1727596765250,0.302307,65515.0,65513.0,0.06094022]
[1727596765849,0.301307,65515.0,65513.0,0.06094022]
[1727596767264,0.301307,65515.0,65514.0,0.06094022]
[1727596768257,0.299307,65515.0,65514.0,0.06094022]
[1727596768554,0.302307,65515.0,65514.0,0.06094022]
[1727596769156,0.303307,65515.0,65514.0,0.06094022]
[1727596769460,0.303307,65515.0,65511.0,0.10322903]
[1727596770665,0.299307,65515.0,65511.0,0.10322903]
[1727596770866,0.304307,65515.0,65511.0,0.10322903]
[1727596771767,0.301307,65515.0,65511.0,0.10322903]
[1727596772061,0.305307,65515.0,65511.0,0.10322903]
[1727596772866,0.302307,65515.0,65511.0,0.10322903]
[1727596773457,0.12,65512.0,65511.0,0.10322903]
[1727596773665,0.30631,65512.0,65511.0,0.0270509]
[1727596775060,0.30631,65512.0,65511.0,0.07283883]
[1727596775452,0.30831,65512.0,65511.0,0.07283883]
[1727596775751,0.30831,65512.0,65511.0,0.00491942]
[1727596776857,0.30931,65512.0,65511.0,0.00491942]
[1727596777969,0.30931,65512.0,65511.0,0.00263]
[1727596780363,0.18931,65512.0,65511.0,0.00263]
[1727596789274,0.30931,65512.0,65511.0,0.00263]
[1727596790369,0.076313,65509.0,65508.0,0.06835101]
[1727596790574,0.306313,65509.0,65508.0,0.06835101]
[1727596792882,0.306313,65509.0,65508.0,0.07035101]
[1727596793877,0.306313,65509.0,65508.0,0.06835101]
[1727596794070,0.309313,65509.0,65508.0,0.06935101]
[1727596796176,0.309313,65509.0,65508.0,0.06835101]
[1727596796377,0.193313,65509.0,65508.0,0.06835101]
[1727596796593,0.190313,65509.0,65508.0,0.06835101]
[1727596796890,0.194313,65509.0,65508.0,0.02256308]
[1727596797083,0.076315,65508.0,65507.0,0.04578793]
[1727596797271,0.076316,65507.0,65505.0,0.06106846]
[1727596797472,0.166316,65507.0,65505.0,0.06106846]
[1727596800189,0.166316,65507.0,65503.0,0.38274659]
[1727596800388,0.167316,65507.0,65503.0,0.38274659]
[1727596801082,0.091,65507.0,65504.0,0.22003001]
[1727596801272,0.091,65507.0,65505.0,0.12776328]
[1727596801583,0.091,65507.0,65506.0,0.06102368]
[1727596801885,0.091,65507.0,65506.0,0.30915403]
[1727596802885,0.091,65507.0,65506.0,0.43648134]
[1727596803072,0.092,65507.0,65506.0,0.43648134]
[1727596803276,0.167316,65507.0,65506.0,0.3296899]
[1727596804084,0.167316,65507.0,65506.0,0.20236259]
[1727596804386,0.767316,65507.0,65506.0,0.20236259]
[1727596804577,0.770316,65507.0,65506.0,0.20236259]
[1727596804781,0.170316,65507.0,65506.0,0.09232031]
[1727596805483,0.246632,65507.0,65506.0,0.09232031]
[1727596805686,0.246632,65507.0,65506.0,0.18389557]
[1727596806183,0.846632,65507.0,65506.0,0.09232031]
[1727596806585,0.846632,65507.0,65506.0,0.07628304]
[1727596806789,0.076317,65506.0,65505.0,0.07628304]
[1727596806990,0.568117,65506.0,65505.0,0.07628304]
[1727596807181,1.168117,65506.0,65505.0,0.07628304]
[1727596807591,0.076318,65505.0,65504.0,0.07628304]
[1727596807892,0.176318,65505.0,65504.0,0.07628304]
[1727596808479,0.076319,65504.0,65503.0,0.07628304]
[1727596808688,0.186319,65504.0,65503.0,0.07628304]
[1727596808884,0.11,65504.0,65500.0,0.09157526]
[1727596809086,0.11,65504.0,65501.0,0.07623789]
[1727596809799,0.076323,65501.0,65500.0,0.07623789]
[1727596810098,0.1,65501.0,65497.0,0.09157526]
[1727596810280,0.3608,65500.0,65496.0,0.09157526]
[1727596810479,0.4508,65500.0,65496.0,0.09157526]
[1727596811185,0.076327,65497.0,65496.0,0.09157526]
[1727596811383,0.166327,65497.0,65496.0,0.09157526]
[1727596812093,0.166327,65497.0,65496.0,0.09957526]
[1727596812496,0.166327,65497.0,65496.0,0.008]
[1727596815489,0.167327,65497.0,65496.0,0.008]
[1727596815691,0.168327,65497.0,65496.0,0.27545079]
[1727596817196,0.168327,65497.0,65496.0,0.10657526]
[1727596817397,0.092,65497.0,65496.0,0.10657526]
[1727596817697,0.092,65497.0,65496.0,0.015]
[1727596817895,0.092,65497.0,65496.0,0.385]
[1727596818090,0.092,65497.0,65496.0,0.56178176]
[1727596818596,0.092,65497.0,65496.0,0.67236498]
[1727596818791,0.092,65497.0,65496.0,0.56178176]
[1727596821589,0.092,65497.0,65496.0,0.65460936]
[1727596823185,0.092,65497.0,65496.0,0.76527973]
[1727596823809,0.168327,65497.0,65496.0,0.76527973]
[1727596825201,0.092,65497.0,65496.0,0.76527973]
[1727596827001,0.092,65497.0,65496.0,1.01540936]
[1727596827193,0.3644,65508.0,65501.0,0.076322]
[1727596827394,0.3908,65508.0,65502.0,0.23641281]
[1727596827695,0.3908,65508.0,65503.0,0.20351281]
[1727596827894,0.3908,65508.0,65504.0,0.20351281]
[1727596828203,0.3908,65508.0,65505.0,0.20351281]
[1727596828403,0.3908,65508.0,65506.0,0.20351281]
[1727596828711,0.3908,65508.0,65507.0,0.20351281]
[1727596829199,0.3908,65508.0,65507.0,0.36474341]
[1727596830106,0.3908,65508.0,65507.0,0.36371916]
[1727596830493,0.3908,65508.0,65507.0,0.25360838]
[1727596831504,0.3938,65508.0,65507.0,0.25360838]
[1727596831803,0.3968,65508.0,65507.0,0.25360838]
[1727596832396,0.3978,65508.0,65507.0,0.25360838]
[1727596834690,0.3978,65508.0,65507.0,0.25358535]
[1727596835701,0.3978,65508.0,65507.0,0.25356499]
[1727596836590,0.3978,65508.0,65507.0,0.3449761]
[1727596837395,0.3978,65508.0,65507.0,0.36362105]
[1727596837996,0.037,65508.0,65507.0,0.36362105]
[1727596842805,0.037,65508.0,65507.0,0.36356816]
[1727596847707,0.037,65508.0,65507.0,0.36619816]
[1727596849699,0.05,65508.0,65507.0,0.36619816]
[1727596852417,0.05,65508.0,65507.0,0.72699816]
[1727596853819,0.05,65508.0,65507.0,0.72600376]
[1727596855616,0.05,65508.0,65507.0,0.83270637]
[1727596856113,0.05,65508.0,65507.0,0.72600376]
[1727596856516,0.05,65508.0,65507.0,0.95995768]
[1727596857408,0.079909,65513.0,65507.0,0.96325507]
[1727596857609,0.076309,65513.0,65508.0,0.43540032]
[1727596857806,0.076309,65513.0,65509.0,0.20134316]
[1727596858007,0.076309,65513.0,65510.0,0.20134316]
[1727596858217,0.076309,65513.0,65511.0,0.20134316]
[1727596858423,0.076309,65513.0,65512.0,0.20134316]
[1727596858627,0.00229056,65514.0,65512.0,0.20134316]
[1727596858819,0.00229056,65514.0,65513.0,0.20134316]
[1727596860414,0.00229056,65514.0,65513.0,0.21134316]
[1727596860618,0.00229056,65514.0,65513.0,0.20134316]
[1727596861831,0.00229056,65514.0,65513.0,0.21156392]
[1727596862536,0.00829056,65514.0,65513.0,0.21256392]
[1727596863530,0.00829056,65514.0,65513.0,0.37944546]
[1727596865121,0.00829056,65514.0,65513.0,0.81655446]
[1727596865324,0.0036,65518.0,65514.0,0.076307]
[1727596865526,0.0036,65524.0,65515.0,0.20156392]
[1727596865834,0.0611,65526.0,65515.0,0.20156392]
[1727596865835,0.137394,65526.0,65521.0,0.09155303]
[1727596866126,0.137394,65526.0,65522.0,0.09195595]
[1727596866532,0.076295,65525.0,65523.0,0.09195595]
[1727596866830,0.076295,65525.0,65524.0,0.09195595]
[1727596868323,0.082295,65525.0,65524.0,0.09195595]
[1727596869123,0.096295,65525.0,65524.0,0.09295595]
[1727596871026,0.090295,65525.0,65524.0,0.09356149]
[1727596871528,0.090295,65525.0,65524.0,0.11530099]
[1727596873630,0.014,65525.0,65524.0,0.30159699]
[1727596873836,0.014,65525.0,65524.0,0.57222724]
[1727596874232,0.00589005,65532.0,65524.0,0.57222724]
[1727596874436,0.00589005,65532.0,65525.0,0.2004887]
[1727596874628,0.00589005,65532.0,65526.0,0.2004887]
[1727596874838,0.00589005,65532.0,65526.0,0.3717293]
[1727596875537,0.00589005,65532.0,65526.0,0.26280209]
[1727596876023,0.00589005,65532.0,65526.0,0.37130989]
[1727596876425,0.00589005,65532.0,65526.0,0.26280209]
[1727596876630,0.00229005,65532.0,65530.0,0.0761501]
[1727596877035,0.076288,65531.0,65530.0,0.0761501]
[1727596877542,0.076288,65531.0,65530.0,0.00782375]
[1727596877738,0.076288,65531.0,65529.0,0.0761501]
[1727596878435,0.076288,65531.0,65530.0,0.00769017]
[1727596879142,0.076288,65531.0,65530.0,0.09856968]
[1727596879339,0.076288,65531.0,65530.0,0.09087951]
[1727596879541,0.076288,65531.0,65530.0,0.16698483]
[1727596879834,0.00229005,65532.0,65530.0,0.17446887]
[1727596880140,0.00229005,65532.0,65530.0,0.08358936]
[1727596880340,0.00229005,65532.0,65531.0,0.0761053]
[1727596880530,0.00229005,65532.0,65530.0,0.0761053]
[1727596880725,0.00229005,65532.0,65531.0,0.0761053]
[1727596880944,0.00229005,65532.0,65531.0,0.17698245]
[1727596881643,0.00229005,65532.0,65531.0,0.0861053]
[1727596882440,0.00229005,65532.0,65531.0,0.24992663]
[1727596882741,0.00229005,65532.0,65531.0,0.3307994]
[1727596883138,0.00229005,65532.0,65531.0,0.23992663]
[1727596883845,0.00229005,65532.0,65531.0,0.34992663]
[1727596884144,0.00229005,65532.0,65531.0,0.4407775]
[1727596884333,0.00229005,65532.0,65531.0,0.34992663]
[1727596884534,0.00229005,65532.0,65531.0,0.35092663]
[1727596884935,0.00429005,65532.0,65531.0,0.35192663]
[1727596885849,0.002,65532.0,65531.0,0.35192663]
[1727596887042,0.002,65532.0,65531.0,0.37383897]
[1727596888539,0.002,65532.0,65531.0,0.46471949]
[1727596889442,0.002,65532.0,65531.0,0.46471973]
[1727596890848,0.002,65532.0,65531.0,0.35471973]
[1727596892455,0.002,65532.0,65531.0,0.27861443]
[1727596892647,0.002,65532.0,65531.0,0.28861443]
[1727596895943,0.002,65532.0,65531.0,0.28873647]
[1727596897854,0.002,65532.0,65531.0,0.36502447]
[1727596899945,0.002,65532.0,65531.0,0.83431378]
[1727596900149,0.0036,65537.0,65534.0,0.076284]
[1727596900455,0.0036,65542.0,65535.0,0.4011881]
[1727596900661,0.106273,65544.0,65537.0,0.09142429]
[1727596900851,0.106273,65544.0,65542.0,0.07618802]
[1727596901248,0.106273,65544.0,65541.0,0.07618802]
[1727596902451,0.106273,65544.0,65542.0,0.07618802]
[1727596902847,0.108273,65544.0,65542.0,0.07618802]
[1727596903256,0.108273,65544.0,65541.0,0.07818802]
[1727596903455,0.108273,65544.0,65542.0,0.16707997]
[1727596903647,0.118273,65544.0,65542.0,0.07618802]
[1727596904163,0.108273,65544.0,65542.0,0.07618802]
[1727596905061,0.108273,65544.0,65543.0,0.07618802]
[1727596905362,0.106273,65544.0,65543.0,0.07618802]
[1727596905564,0.106273,65544.0,65542.0,0.07718802]
[1727596906154,0.467073,65544.0,65543.0,0.07618802]
[1727596906553,0.467073,65544.0,65542.0,0.07718802]
[1727596906868,0.467073,65544.0,65543.0,0.07618802]
[1727596907562,0.467073,65544.0,65542.0,0.07818802]
[1727596908362,0.477073,65544.0,65542.0,0.07818802]
[1727596909167,0.116273,65544.0,65543.0,0.001]
[1727596909372,0.477073,65544.0,65543.0,0.001]
[1727596910453,0.116273,65544.0,65543.0,0.001]
[1727596910668,0.477073,65544.0,65543.0,0.001]
[1727596911472,0.467073,65544.0,65543.0,0.001]
[1727596913573,0.106273,65544.0,65543.0,0.002]
[1727596913779,0.467073,65544.0,65543.0,0.002]
[1727596914261,0.477073,65544.0,65543.0,0.002]
[1727596914772,0.467073,65544.0,65543.0,0.002]
[1727596918176,0.437073,65544.0,65543.0,0.002]
[1727596919576,0.477073,65544.0,65543.0,0.002]
[1727596920160,0.437073,65544.0,65543.0,0.002]
[1727596921469,0.076273,65544.0,65543.0,0.002]
[1727596921666,0.437073,65544.0,65543.0,0.002]
[1727596922076,0.076273,65544.0,65543.0,0.002]
[1727596922379,0.437073,65544.0,65543.0,0.002]
[1727596923673,0.076273,65544.0,65543.0,0.002]
[1727596924079,0.437073,65544.0,65543.0,0.002]
[1727596924778,0.457073,65544.0,65543.0,0.002]
[1727596925081,0.076275,65542.0,65541.0,0.07618802]
[1727596925380,0.176275,65542.0,65541.0,0.07618802]
[1727596926481,0.176275,65542.0,65541.0,0.16696308]
[1727596928275,0.177275,65542.0,65541.0,0.16796308]
[1727596928479,0.177275,65542.0,65541.0,0.09177506]
[1727596928680,0.178275,65542.0,65541.0,0.09277506]
[1727596929086,0.25455,65542.0,65541.0,0.002]
[1727596929384,0.25455,65542.0,65540.0,0.04577769]
[1727596929385,0.533996,65541.0,65540.0,0.04577769]
[1727596929580,0.55772,65541.0,65537.0,0.0148008]
[1727596929785,0.3608,65538.0,65525.0,0.02553805]
[1727596930081,0.076295,65525.0,65524.0,0.09142429]
[1727596930284,0.076295,65525.0,65524.0,0.180508]
[1727596930486,0.076295,65525.0,65524.0,0.08908371]
[1727596930881,0.3608,65526.0,65524.0,0.08908371]
[1727596931071,0.3608,65526.0,65525.0,0.08908371]
[1727596931276,0.3608,65526.0,65519.0,0.0309]
[1727596931277,0.076295,65525.0,65521.0,0.09142429]
[1727596931585,0.076295,65525.0,65522.0,0.08869204]
[1727596931895,0.437095,65525.0,65523.0,0.08869204]
[1727596932181,0.437095,65525.0,65519.0,0.05310639]
[1727596932382,0.437095,65525.0,65520.0,0.08866681]
[1727596932586,0.437095,65525.0,65521.0,0.08866681]
[1727596932885,0.076296,65524.0,65522.0,0.08866681]
[1727596933195,0.076296,65524.0,65519.0,0.05310639]
[1727596933376,0.076296,65524.0,65521.0,0.001]
[1727596933574,0.076296,65524.0,65522.0,0.08864386]
[1727596933877,0.076296,65524.0,65521.0,0.001]
[1727596934077,0.076296,65524.0,65522.0,0.08864005]
[1727596934279,0.076296,65524.0,65521.0,0.001]
[1727596935078,0.076298,65523.0,65521.0,0.001]
[1727596935280,0.076296,65524.0,65521.0,0.001]
[1727596936171,0.437096,65524.0,65521.0,0.001]
[1727596936377,0.076297,65523.0,65521.0,0.001]
[1727596937382,0.076297,65523.0,65519.0,0.05310639]
[1727596937586,0.076297,65523.0,65519.0,0.07310639]
[1727596939792,0.076297,65523.0,65521.0,0.001]
[1727596939989,0.076297,65523.0,65521.0,0.021]
[1727596941985,0.3608,65525.0,65521.0,0.021]
[1727596942290,0.3608,65525.0,65523.0,0.076297]
[1727596942593,0.3608,65525.0,65524.0,0.25885614]
[1727596942793,0.3608,65525.0,65524.0,0.27885614]
[1727596944785,0.3618,65525.0,65524.0,0.27885614]
[1727596945089,0.001,65525.0,65524.0,0.27885614]
[1727596946988,0.003,65525.0,65524.0,0.27885614]
[1727596953194,0.003,65525.0,65524.0,0.38438547]
[1727596953582,0.003,65525.0,65524.0,0.38448088]
[1727596956086,0.003,65525.0,65524.0,0.19041748]
[1727596956604,0.003,65525.0,65524.0,0.38445269]
[1727596957106,0.003,65525.0,65524.0,0.19041748]
[1727596957696,0.003,65525.0,65524.0,0.38447954]
[1727596958591,0.003,65525.0,65524.0,0.19041748]
[1727596959593,0.3608,65531.0,65526.0,0.076294]
[1727596959792,0.3608,65531.0,65527.0,0.0309]
[1727596959990,0.3608,65531.0,65527.0,0.21988156]
[1727596960197,0.3608,65531.0,65528.0,0.0305]
[1727596960598,0.3608,65531.0,65529.0,0.20715108]
[1727596960800,0.3608,65531.0,65529.0,0.31715108]
[1727596961194,0.3628,65531.0,65529.0,0.31715108]
[1727596962200,0.3608,65531.0,65529.0,0.31715108]
[1727596962397,0.3628,65531.0,65529.0,0.31815108]
[1727596963493,0.3628,65531.0,65530.0,0.08832089]
[1727596963905,0.3628,65531.0,65530.0,0.25656971]
[1727596964905,0.003,65531.0,65530.0,0.25656971]
[1727596965707,0.002,65531.0,65530.0,0.25656971]
[1727596965906,0.001,65531.0,65530.0,0.25856971]
[1727596968602,0.001,65531.0,65530.0,0.35001947]
[1727596968804,0.001,65531.0,65530.0,0.36001947]
[1727596970207,0.001,65531.0,65530.0,0.26856971]
[1727596971107,0.001,65531.0,65530.0,0.36003409]
[1727596971313,0.001,65531.0,65530.0,0.26856971]
[1727596972410,0.001,65531.0,65530.0,0.27119971]
[1727596973308,0.001,65531.0,65530.0,0.37649182]
[1727596975405,0.077288,65531.0,65530.0,0.37649182]
[1727596979302,0.077288,65531.0,65530.0,0.37649537]
[1727596982413,0.077288,65531.0,65530.0,0.18287882]
[1727596982611,0.077288,65531.0,65530.0,0.37652645]
[1727596987209,0.077288,65531.0,65530.0,0.18287882]
[1727596987413,0.077288,65531.0,65530.0,0.37645903]
[1727596993724,0.077288,65531.0,65530.0,0.20821021]
[1727597000526,0.077288,65531.0,65530.0,0.20558021]
[1727597000928,0.077288,65531.0,65530.0,0.19558021]
[1727597001432,0.438088,65531.0,65530.0,0.1818826]
[1727597001938,0.438088,65531.0,65530.0,0.09031368]
[1727597004025,0.438088,65531.0,65530.0,0.1818826]
[1727597004227,0.438088,65531.0,65530.0,0.09031368]
[1727597004729,0.438088,65531.0,65530.0,0.1818826]
[1727597005324,0.438088,65531.0,65530.0,0.09031368]
[1727597008341,0.488088,65531.0,65530.0,0.002]
[1727597010530,0.127288,65531.0,65530.0,0.002]
[1727597010728,0.488088,65531.0,65530.0,0.002]
[1727597011535,0.127288,65531.0,65530.0,0.002]
[1727597011843,0.488088,65531.0,65530.0,0.002]
[1727597012743,0.438088,65531.0,65530.0,0.002]
[1727597014849,0.438088,65531.0,65530.0,0.00463]
[1727597015146,0.448088,65531.0,65530.0,0.00463]
[1727597016046,0.087288,65531.0,65530.0,0.00463]
[1727597016239,0.448088,65531.0,65530.0,0.00463]
[1727597020352,0.087288,65531.0,65530.0,0.00463]
[1727597020557,0.448088,65531.0,65530.0,0.00463]
[1727597024054,0.087288,65531.0,65530.0,0.00463]
[1727597024250,0.448088,65531.0,65530.0,0.00463]
[1727597025953,0.524376,65531.0,65530.0,0.00463]
[1727597026153,0.524376,65531.0,65530.0,0.06561608]
[1727597026356,0.152582,65528.0,65527.0,0.06099446]
[1727597026554,0.076295,65525.0,65524.0,0.06099446]
[1727597026749,0.076297,65523.0,65522.0,0.06099446]
[1727597026960,0.116297,65523.0,65522.0,0.06099446]
[1727597027354,0.650434,65523.0,65522.0,0.06099446]
[1727597028149,1.011234,65523.0,65522.0,0.06099446]
[1727597028351,0.650434,65523.0,65521.0,0.06099446]
[1727597028554,0.3608,65522.0,65521.0,0.06099446]
[1727597028754,0.4008,65522.0,65517.0,0.07980682]
[1727597028955,0.4008,65522.0,65517.0,0.07620682]
[1727597029262,0.076299,65521.0,65520.0,0.06097517]
[1727597029461,0.186299,65521.0,65520.0,0.06097517]
[1727597029961,0.186299,65521.0,65519.0,0.06097517]
[1727597030752,0.076302,65519.0,65517.0,0.06097517]
[1727597030951,0.146302,65519.0,65517.0,0.06097517]
[1727597031262,0.076304,65517.0,65516.0,0.06097517]
[1727597031463,0.106304,65517.0,65516.0,0.06097517]
[1727597032163,0.076308,65514.0,65513.0,0.07620682]
[1727597032347,0.076308,65514.0,65512.0,0.12836152]
[1727597032547,0.3608,65513.0,65512.0,0.12836152]
[1727597032750,0.3558,65513.0,65512.0,0.21733188]
[1727597034363,0.3558,65513.0,65512.0,0.12836152]
[1727597034660,0.3658,65513.0,65512.0,0.09776152]
[1727597034867,0.3658,65513.0,65512.0,0.0215547]
[1727597035054,0.07631,65512.0,65511.0,0.07620682]
[1727597035254,0.07631,65512.0,65510.0,0.07849595]
[1727597036451,0.07631,65512.0,65510.0,0.02456346]
[1727597036962,0.06231,65512.0,65510.0,0.02456346]
[1727597038055,0.06231,65512.0,65510.0,0.03656346]
[1727597038755,0.45792,65511.0,65510.0,0.012]
[1727597038957,0.55792,65511.0,65510.0,0.012]
[1727597039159,1.15792,65511.0,65510.0,0.012]
[1727597040067,1.15792,65511.0,65510.0,0.022]
[1727597041160,0.002,65511.0,65510.0,0.014]
[1727597041968,0.45796,65510.0,65494.0,0.0608784]
[1727597042156,0.3608,65498.0,65493.0,0.0072]
[1727597042355,0.3608,65498.0,65492.0,0.9048]
[1727597042551,0.3608,65498.0,65492.0,0.9058]
[1727597042769,0.0036,65504.0,65492.0,0.9058]
[1727597042770,0.0036,65504.0,65492.0,0.9048]
[1727597043067,0.0036,65504.0,65493.0,0.3608]
[1727597043469,0.3608,65499.0,65493.0,0.3608]
[1727597044863,0.7416,65499.0,65492.0,0.90576]
[1727597045064,0.3608,65493.0,65492.0,0.9048]